Workbook

Sheet Lista de Tabelas

Sheet 1. Histórico de Produção
B2: 1. HISTÓRICO DA PRODUÇÃO NACIONAL
B6: Tabela 1. Histórico de produção de petróleo – óleo e condensado (Mbbl/d)
C8: 04/2017 | D8: 05/2017 | E8: 06/2017 | F8: 07/2017 | G8: 08/2017 | H8: 09/2017 | I8: 10/2017 | J8: 11/2017 | K8: 12/2017 | L8: 01/2018 | M8: 02/2018 | N8: 03/2018 | O8: 04/2018
B9: Óleo | C9: 2522.363234 | D9: 2637.438696 | E9: 2659.871494 | F9: 2608.617617 | G9: 2559.986072 | H9: 2636.322894 | I9: 2611.378162 | J9: 2580.122926 | K9: 2597.38126 | L9: 2599.041205 | M9: 2603.949133 | N9: 2544.96649 | O9: 2584.107048
B10: Condensado | C10: 16.6083469 | D10: 15.83565485 | E10: 14.8980182 | F10: 14.24561439 | G10: 16.07766147 | H10: 16.26842583 | I10: 16.04913859 | J10: 14.52041587 | K10: 14.99073508 | L10: 16.15223687 | M10: 13.39616944 | N10: 12.33308724 | O10: 12.62074241
B11: Petróleo | C11: 2538.971581 | D11: 2653.274351 | E11: 2674.769512 | F11: 2622.863231 | G11: 2576.063733 | H11: 2652.59132 | I11: 2627.427301 | J11: 2594.643342 | K11: 2612.371995 | L11: 2615.193442 | M11: 2617.345302 | N11: 2557.299577 | O11: 2596.727791
B14: Tabela 2. Histórico de produção de gás natural – GASA e GASN (MMm3/d)
C16: 04/2017 | D16: 05/2017 | E16: 06/2017 | F16: 07/2017 | G16: 08/2017 | H16: 09/2017 | I16: 10/2017 | J16: 11/2017 | K16: 12/2017 | L16: 01/2018 | M16: 02/2018 | N16: 03/2018 | O16: 04/2018
B17: GASA | C17: 80.96537722 | D17: 83.58471687 | E17: 87.3234836 | F17: 86.69900772 | G17: 83.66103375 | H17: 86.82787454 | I17: 85.55876672 | J17: 84.97001551 | K17: 84.23499606 | L17: 84.84757378 | M17: 88.64933961 | N17: 87.09059184 | O17: 89.01187221
B18: GASN | C18: 21.61568431 | D18: 21.19573938 | E18: 23.81047002 | F18: 28.30700237 | G18: 28.17901438 | H18: 27.17850759 | I18: 29.04530482 | J18: 28.44006587 | K18: 29.13769891 | L18: 27.57247712 | M18: 21.16345755 | N18: 19.88160768 | O18: 19.73550496
B19: Gás Total | C19: 102.5810615 | D19: 104.7804563 | E19: 111.1339536 | F19: 115.0060101 | G19: 111.8400481 | H19: 114.0063821 | I19: 114.6040715 | J19: 113.4100814 | K19: 113.372695 | L19: 112.4200509 | M19: 109.8127972 | N19: 106.9721995 | O19: 108.7473772
B22: Tabela 3. Histórico da movimentação da gás natural (Mm³/d)
B24: Período | C24: Consumo Interno | D24: Queima | E24: Disponível | F24: Injeção | G24: Produção
B25: 04/2017 | C25: 12877.71641 | D25: 3553.205192 | E25: 60472.89369 | F25: 25677.21998 | G25: 102581.0353
B26: 05/2017 | C26: 12928.9493 | D26: 3707.155246 | E26: 61891.60953 | F26: 26252.7214 | G26: 104780.4355
B27: 06/2017 | C27: 13140.54061 | D27: 4511.200172 | E27: 66917.36228 | F27: 26564.84285 | G27: 111133.9459
B28: 07/2017 | C28: 13343.21249 | D28: 4226.044698 | E28: 67927.63944 | F28: 29509.11347 | G28: 115006.0101
B29: 08/2017 | C29: 13286.43177 | D29: 3387.473764 | E29: 67296.47626 | F29: 27869.66634 | G29: 111840.0481
B30: 09/2017 | C30: 13345.71147 | D30: 3375.51585 | E30: 66905.03869 | F30: 30376.34252 | G30: 114002.6085
B31: 10/2017 | C31: 13472.03842 | D31: 3392.368185 | E31: 70128.70667 | F31: 27610.91478 | G31: 114604.0281
B32: 11/2017 | C32: 13068.67993 | D32: 3566.875619 | E32: 69971.38093 | F32: 26802.92828 | G32: 113409.8648
B33: 12/2017 | C33: 12936.25028 | D33: 3865.641672 | E33: 69874.33037 | F33: 26696.46721 | G33: 113372.6895
B34: 01/2018 | C34: 12808.82006 | D34: 4018.518908 | E34: 65541.66205 | F34: 30039.92085 | G34: 112408.9219
B35: 02/2018 | C35: 12846.80783 | D35: 3598.210344 | E35: 60473.28996 | F35: 32894.48902 | G35: 109812.7972
B36: 03/2018 | C36: 13024.52551 | D36: 3323.265404 | E36: 57190.09229 | F36: 33434.31633 | G36: 106972.1995
B37: 04/2018 | C37: 12990.12769 | D37: 3423.557825 | E37: 59678.80532 | F37: 32654.88559 | G37: 108747.3764
B39: Tabela 4. Histórico de produção de petróleo e gás natural (Mboe/d)
C42: =C16 -> 04/2017 | D42: =D16 -> 05/2017 | E42: 06/2017 | F42: 07/2017 | G42: 08/2017 | H42: 09/2017 | I42: 10/2017 | J42: 11/2017 | K42: 12/2017 | L42: 01/2018 | M42: 02/2018 | N42: 03/2018 | O42: 04/2018
B43: Petróleo | C43: =C11 -> 2538.971581 | D43: 2653.274351 | E43: 2674.769512 | F43: 2622.863231 | G43: 2576.063733 | H43: 2652.59132 | I43: 2627.427301 | J43: 2594.643342 | K43: 2612.371995 | L43: 2615.193442 | M43: 2617.345302 | N43: 2557.299577 | O43: 2596.727791
B44: Gás Natural | C44: =C19*6.28981 -> 645.2153866 | D44: 659.0491615 | E44: 699.0114528 | F44: 723.3659524 | G44: 703.4526531 | H44: 717.0784824 | I44: 720.8378353 | J44: 713.3278639 | K44: 713.0927105 | L44: 707.1007603 | M44: 690.7016297 | N44: 672.8348103 | O44: 684.0003404
B45: Produção Total | C45: =SUM(C43:C44) -> 3184.186968 | D45: =SUM(D43:D44) -> 3312.323512 | E45: 3373.780965 | F45: 3346.229183 | G45: 3279.516386 | H45: 3369.669802 | I45: 3348.265136 | J45: 3307.971206 | K45: 3325.464706 | L45: 3322.294202 | M45: 3308.046932 | N45: 3230.134387 | O45: =SUM(O43:O44) -> 3280.728131

Sheet 2. Dados de Produção
B2: 2. DADOS DE PRODUÇÃO - DISTRIBUIÇÃO
B6: Tabela 5. Distribuição da produção de petróleo e gás natural por estado
B8: Estado | C8: Petróleo (bbl/d) | D8: Gás Natural (Mm³/d) | E8: Produção Total (boe/d) | F8: Nº Campos produtores
B9: Rio de Janeiro | C9: 1837591.993 | D9: 57507.0877 | E9: 2199300.648 | F9: 39
B10: Espírito Santo | C10: 363975.4233 | D10: 9185.842875 | E10: 421752.6297 | F10: 46
B11: São Paulo | C11: 277654.6072 | D11: 16986.80171 | E11: 384498.3625 | F11: 6
B12: Amazonas | C12: 21000.16604 | D12: 14191.96775 | E12: 110264.9467 | F12: 7
B13: Bahia | C13: 29365.08918 | D13: 6537.424373 | E13: 70484.24638 | F13: 82
B14: Rio Grande do Norte | C14: 41268.31811 | D14: 1026.605472 | E14: 47725.47147 | F14: 79
B15: Sergipe | C15: 17664.8997 | D15: 1620.144404 | E15: 27855.30018 | F15: 21
B16: Alagoas | C16: 2676.648576 | D16: 1047.50563 | E16: 9265.25996 | F16: 12
B17: Ceará | C17: 5527.097785 | D17: 90.81454033 | E17: 6098.303989 | F17: 6
B18: Maranhão | C18: 3.547710722 | D18: 553.1827173 | E18: 3482.961898 | F18: 4
B19: Total Geral | C19: =SUM(C9:C18) -> 2596727.791 | D19: =SUM(D9:D18) -> 108747.3772 | E19: =SUM(E9:E18) -> 3280728.131 | F19: =SUM(F9:F18) -> 302
B22: Tabela 6. Distribuição da produção de petróleo e gás natural por bacia
B24: Bacia | C24: Petróleo (bbl/d) | D24: Gás Natural (Mm³/d) | E24: Produção Total (boe/d) | F24: Nº Campos produtores
B25: Santos | C25: 1247665.248 | D25: 59427.29232 | E25: 1621451.625 | F25: 12
B26: Campos | C26: 1199194.557 | D26: 22918.31789 | E26: 1343346.422 | F26: 41
B27: Solimões | C27: 21000.16604 | D27: 14191.96775 | E27: 110264.9467 | F27: 7
B28: Potiguar | C28: 42347.31133 | D28: 1027.462296 | E28: 48809.85395 | F28: 81
B29: Recôncavo | C29: 28991.06039 | D29: 2120.365729 | E29: 42327.75795 | F29: 76
B30: Espírito Santo | C30: 32362.21893 | D30: 1334.122068 | E30: 40753.59325 | F30: 38
B31: Camamu | C31: 372.8337293 | D31: 4388.809179 | E31: 27977.60959 | F31: 2
B32: Sergipe | C32: 17664.8997 | D32: 1620.144404 | E32: 27855.30018 | F32: 21
B33: Alagoas | C33: 2676.648576 | D33: 1047.50563 | E33: 9265.25996 | F33: 12
B34: Ceará | C34: 4448.104571 | D34: 89.95771633 | E34: 5013.921515 | F34: 4
B35: Parnaíba | C35: 3.547710722 | D35: 553.1827173 | E35: 3482.961898 | F35: 4
B36: Tucano Sul | C36: 1.1950639 | D36: 28.24946533 | E36: 178.8788334 | F36: 4
B37: Total Geral | C37: 2596727.791 | D37: 108747.3772 | E37: 3280728.131 | F37: 302
B40: Tabela 7. Distribuição da produção de petróleo e gás natural por operador
B42: Nº | C42: Operador | D42: Petróleo (bbl/d) | E42: Gás Natural (Mm³/d) | F42: Produção Total (boe/d)
B43: 1 | C43: Petrobras | D43: 2419055.908 | E43: 106274.2972 | F43: 3087501.045
B44: 2 | C44: Statoil Brasil O&G | D44: 61382.08597 | E44: 109.726 | F44: 62072.24166
B45: 3 | C45: Total E&P do Brasil | D45: 39554.96297 | E45: 1114.935576 | F45: 46567.6959
B46: 4 | C46: Shell Brasil | D46: 40845.57822 | E46: 375.326397 | F46: 43206.30994
B47: 5 | C47: Chevron Frade | D47: 17370.32507 | E47: 210.4544667 | F47: 18694.04368
B48: 6 | C48: PetroRio O&G | D48: 7167.286685 | E48: 20.26121533 | F48: 7294.72588
B49: 7 | C49: Dommo Energia | D49: 6947.286267 | E49: 18.862476 | F49: 7065.927657
B50: 8 | C50: Parnaíba Gás Natural | D50: 3.547710722 | E50: 553.1827173 | F50: 3482.961898
B51: 9 | C51: Maha Energy | D51: 1428.570452 | E51: 24.56946667 | F51: 1583.10773
B52: 10 | C52: SHB | D52: 1326.620354 | E52: 12.06986533 | F52: 1402.537514
B53: 11 | C53: Petrosynergy | D53: 413.8412966 | E53: 6.36571 | F53: 453.880403
B54: 12 | C54: Partex Brasil | D54: 309.1483547 | E54: 0.442356 | F54: 311.9306899
B55: 13 | C55: Nova Petróleo Rec | D55: 285.0708719 | E55: 4.088664333 | F55: 310.7877937
B56: 14 | C56: Petrogal Brasil | D56: 174.2475793 | E56: 3.516720333 | F56: 196.367082
B57: 15 | C57: Imetame | D57: 137.1144971 | E57: 2.280067667 | F57: 151.4556896
B58: 16 | C58: Recôncavo E&P | D58: 99.40709248 | E58: 1.003766333 | F58: 105.720592
B59: 17 | C59: Phoenix | D59: 8.777849176 | E59: 13.187426 | F59: 91.7242531
B60: 18 | C60: UP Petróleo | D60: 56.41225968 | E60: 0.4850666667 | F60: 59.46323686
B61: 19 | C61: Santana | D61: 39.09984909 | E61: 1.160056667 | F61: 46.39638511
B62: 20 | C62: Alvopetro | D62: 30.41248931 | E62: 0.3427186667 | F62: 32.56812461
B63: 21 | C63: Vipetro | D63: 24.51060334 | E63: 0.059175 | F63: 24.88280285
B64: 22 | C64: Norteoleum | D64: 18.73944059 | E64: 0.1662076667 | F64: 19.78485524
B65: 23 | C65: IPI | D65: 13.89209369 | E65: 0.4998576667 | F65: 17.03610344
B66: 24 | C66: Perícia | D66: 13.94241217 | E66: 0.04433333333 | F66: 14.22126041
B67: 25 | C67: Guto & Cacal | D67: 13.76650715 | E67: 0.043523 | F67: 14.04025855
B68: 26 | C68: EPG Brasil | D68: 4.13869498 | E68: 0.00329 | F68: 4.159388455
B69: 27 | C69: Leros | D69: 1.356292696 | E69: 0.002156333333 | F69: 1.369855623
B70: 28 | C70: Nord | D70: 1.153131833 | E70: 0.0007333333333 | F70: 1.157744361
B71: 29 | C71: Petroil | D71: 0.5881475535 | E71: 0 | F71: 0.5881475535
C72: Total Geral | D72: 2596727.791 | E72: 108747.3772 | F72: 3280727.543
B75: Tabela 8. Distribuição da produção de petróleo e gás natural por concessionário
B77: Nº | C77: Concessionário | D77: Petróleo (bbl/d) | E77: Gás Natural (Mm³/d) | F77: Produção Total (boe/d)
B78: 1 | C78: Petrobras | D78: 1971457.795 | E78: 84026.70065 | F78: 2499969.777
B79: 2 | C79: Shell Brasil | D79: 327409.0512 | E79: 12993.46682 | F79: 409135.4887
B80: 3 | C80: Petrogal Brasil | D80: 91578.35244 | E80: 3926.56764 | F80: 116275.7168
B81: 4 | C81: Repsol Sinopec | D81: 61661.7004 | E81: 2301.35237 | F81: 76136.76955
B82: 5 | C82: Statoil Brasil O&G | D82: 36829.2516 | E82: 65.8356 | F82: 37243.34502
B83: 6 | C83: Total E&P do Brasil | D83: 24729.63055 | E83: 972.090385 | F83: 30843.89438
B84: 7 | C84: Sinochem Petróleo | D84: 24552.8344 | E84: 43.8904 | F84: 24828.89668
B85: 8 | C85: Queiroz Galvão | D85: 166.196205 | E85: 1974.962745 | F85: 12588.33663
B86: 9 | C86: ONGC Campos | D86: 11028.30611 | E86: 101.338128 | F86: 11665.70368
B87: 10 | C87: QPI Brasil | D87: 9394.482986 | E87: 86.325072 | F87: 9937.451287
B88: 11 | C88: Chevron Frade | D88: 8987.406207 | E88: 108.8891583 | F88: 9672.298324
B89: 12 | C89: PetroRio O&G | D89: 7167.2867 | E89: 20.2612 | F89: 7294.725798
B90: 13 | C90: Dommo Energia | D90: 6947.2863 | E90: 18.8625 | F90: 7065.927841
B91: 14 | C91: CNOOC Petroleum | D91: 3608.50088 | E91: 235.21568 | F91: 5087.962816
B92: 15 | C92: CNODC Brasil | D92: 3608.50088 | E92: 235.21568 | F92: 5087.962816
B93: 16 | C93: Parnaíba Gás Natural | D93: 3.5477 | E93: 553.1827 | F93: 3482.961778
B94: 17 | C94: Frade | D94: 3171.821363 | E94: 38.4289917 | F94: 3413.53242
B95: 18 | C95: Geopark Brasil | D95: 36.93249 | E95: 438.88061 | F95: 2797.40814
B96: 19 | C96: Brasoil Manati | D96: 36.93249 | E96: 438.88061 | F96: 2797.40814
B97: 20 | C97: Maha Energy | D97: 1428.5705 | E97: 24.5695 | F97: 1583.107987
B98: 21 | C98: Chevron Brasil | D98: 1105.393987 | E98: 5.1346125 | F98: 1137.689725
B99: 22 | C99: OP Pescada | D99: 98.29106 | E99: 99.89462 | F99: 726.6092398
B100: 23 | C100: Petrosynergy | D100: 413.8412 | E100: 6.3657 | F100: 453.8802435
B101: 24 | C101: SHB | D101: 405.753995 | E101: 7.511495 | F101: 452.9998714
B102: 25 | C102: Nova Petróleo Rec | D102: 285.0709 | E102: 4.0887 | F102: 310.7880461
B103: 26 | C103: Partex Brasil | D103: 154.57415 | E103: 0.22115 | F103: 155.9651415
B104: 27 | C104: Imetame | D104: 137.1145 | E104: 2.2801 | F104: 151.4558958
B105: 28 | C105: Recôncavo E&P | D105: 99.4071 | E105: 1.0038 | F105: 105.7208113
B106: 29 | C106: Phoenix | D106: 8.7778 | E106: 13.1875 | F106: 91.72466938
B107: 30 | C107: Santana | D107: 39.0998 | E107: 1.1601 | F107: 46.39660858
B108: 31 | C108: Alvopetro | D108: 30.4125 | E108: 0.3428 | F108: 32.56864687
B109: 32 | C109: Vipetro | D109: 24.5106 | E109: 0.0592 | F109: 24.88295675
B110: 33 | C110: Petro Vista | D110: 21.1546125 | E110: 0.1819125 | F110: 22.29880756
B111: 34 | C111: UP Petróleo | D111: 21.1546125 | E111: 0.1819125 | F111: 22.29880756
B112: 35 | C112: IPI | D112: 13.8921 | E112: 0.4999 | F112: 17.03637602
B113: 36 | C113: Perícia | D113: 13.9424 | E113: 0.0443 | F113: 14.22103858
B114: 37 | C114: Guto & Cacal | D114: 13.7665 | E114: 0.0435 | F114: 14.04010674
B115: 38 | C115: Sonangol Guanambi | D115: 11.27062 | E115: 0.08726 | F115: 11.81946882
B116: 39 | C116: Norteoleum | D116: 9.3697 | E116: 0.0831 | F116: 9.892383211
B117: 40 | C117: Aurizônia Petróleo | D117: 9.3697 | E117: 0.0831 | F117: 9.892383211
B118: 41 | C118: EPG Brasil | D118: 4.1387 | E118: 0.0033 | F118: 4.159456373
B119: 42 | C119: Leros | D119: 1.3563 | E119: 0.0022 | F119: 1.370137582
B120: 43 | C120: Nord | D120: 1.1531 | E120: 0.0007 | F120: 1.157502867
B121: 44 | C121: Petroil | D121: 0.5881 | E121: 0 | F121: 0.5881
C122: Total geral | D122: =SUM(D78:D121) -> 2596727.79 | E122: =SUM(E78:E121) -> 108747.3774 | F122: =SUM(F78:F121) -> 3280728.132
B125: Tabela 9. Movimentação de gás natural por destinação (Mm³/d)
B127: Bacia | C127: Consumo Interno | D127: Queima | E127: Disponível | F127: Injeção | G127: Produção
B128: Santos | C128: 4017.040486 | D128: 1733.118783 | E128: 30943.17148 | F128: 22733.96157 | G128: 59427.29232
B129: Campos | C129: 7445.491094 | D129: 1275.711661 | E129: 13989.61267 | F129: 207.5024667 | G129: 22918.31789
B130: Solimões | C130: 464.8086323 | D130: 179.1621657 | E130: 5346.140182 | F130: 8201.856767 | G130: 14191.96775
B131: Camamu | C131: 83.48656667 | D131: 3.092367667 | E131: 4302.230245 | F131: 0 | G131: 4388.809179
B132: Recôncavo | C132: 127.5016747 | D132: 60.869918 | E132: 1343.946482 | F132: 588.047654 | G132: 2120.365729
B133: Sergipe | C133: 134.571476 | D133: 59.72838033 | E133: 502.330349 | F133: 923.5134653 | G133: 1620.143671
B134: Espírito Santo | C134: 379.5057097 | D134: 25.95346367 | E134: 928.662895 | F134: 0 | G134: 1334.122068
B135: Alagoas | C135: 3.393554667 | D135: 15.775647 | E135: 1028.332761 | F135: 0.003666666667 | G135: 1047.50563
B136: Potiguar | C136: 331.5774633 | D136: 55.4616 | E136: 640.4232323 | F136: 0 | G136: 1027.462296
B137: Parnaíba | C137: 2.736769333 | D137: 8.991515667 | E137: 541.4544323 | F137: 0 | G137: 553.1827173
B138: Ceará | C138: 0.01426666667 | D138: 5.210432667 | E138: 84.733017 | F138: 0 | G138: 89.95771633
B139: Tucano Sul | C139: 0 | D139: 0.4818896667 | E139: 27.76757567 | F139: 0 | G139: 28.24946533
B140: Total Geral | C140: 12990.12769 | D140: 3423.557825 | E140: 59678.80532 | F140: 32654.88559 | G140: 108747.3764
B143: Tabela 10. Distribuição da produção dos campos do Pré-sal¹
B145: Campo | C145: Petróleo (bbl/d) | E145: Gás natural (Mm³/d) | G145: Produção (boe/d)
C146: Pré-sal¹ | D146: Pós-sal² | E146: Pré-sal¹ | F146: Pós-sal² | G146: Pré-sal¹ | H146: Pós-sal²
B147: Lula | C147: 897779.0746 | D147: 0 | E147: 38008.141 | F147: 0 | G147: 1136843.06 | H147: 0
B148: Sapinhoá | C148: 197940.0398 | D148: 0 | E148: 7916.811609 | F148: 0 | G148: 247735.2806 | H148: 0
B149: Jubarte | C149: 123986.1843 | D149: 67830.00732 | E149: 4239.829035 | F149: 552.0351423 | G149: 150653.9034 | H149: 71302.20348
B150: Mero | C150: 36085.00881 | D150: 0 | E150: 2352.15684 | F150: 0 | G150: 50879.62843 | H150: 0
B151: Lapa | C151: 39554.96297 | D151: 0 | E151: 1114.935576 | F151: 0 | G151: 46567.6959 | H151: 0
B152: Baleia Franca | C152: 33575.1494 | D152: 2854.795062 | E152: 1238.198344 | F152: 39.34651733 | G152: 41363.18172 | H152: 3102.27718
B153: Baleia Azul | C153: 32634.68359 | D153: 0 | E153: 1101.688138 | F153: 0 | G153: 39564.09266 | H153: 0
B154: Marlim Leste | C154: 22319.81598 | D154: 49885.08945 | E154: 453.0455767 | F154: 775.112306 | G154: 25169.38657 | H154: 54760.39858
B155: Sururu | C155: 16303.96326 | D155: 0 | E155: 495.2514303 | F155: 0 | G155: 19419.00066 | H155: 0
B156: Búzios | C156: 10526.35346 | D156: 0 | E156: 340.5574333 | F156: 0 | G156: 12668.39501 | H156: 0
B157: Caratinga | C157: 6255.735118 | D157: 13583.54183 | E157: 109.3948707 | F157: 261.3468293 | G157: 6943.808069 | H157: 15227.36373
B158: Voador | C158: 2648.823194 | D158: 0 | E158: 80.52852967 | F158: 0 | G158: 3155.332346 | H158: 0
B159: Marlim | C159: 2092.224246 | D159: 129868.4003 | E159: 63.60701533 | F159: 1675.536876 | G159: 2492.300287 | H159: 140407.2089
B160: Barracuda | C160: 1281.295145 | D160: 54990.52968 | E160: 22.40617 | F160: 801.1984733 | G160: 1422.225697 | H160: 60029.91585
B161: Pirambu | C161: 428.447181 | D161: 0 | E161: 15.661411 | F161: 0 | G161: 526.9544805 | H161: 0
B162: Pampo | C162: 1.810836299 | D162: 8524.810394 | E162: 0.03536033333 | F162: 106.6833417 | G162: 2.033246077 | H162: 9195.828343
B163: Outros Campos | C163: 0 | D163: 845777.0448 | E163: 0 | F163: 46983.86934 | G163: 0 | H163: 1141296.656
B164: Total Geral | C164: =SUM(C147:C163) -> 1423413.572 | D164: 1173314.219 | E164: 57552.24834 | F164: 51195.12882 | G164: 1785406.279 | H164: 1495321.852
B166: Tabela 11. Produção dos poços do Pré-sal¹
B168: Nome ANP do Poço | C168: Campo | D168: Bacia | E168: Petróleo (bbl/d) | F168: Gás natural (Mm³/d) | G168: Produção Total (boe/d)
B169: 3BRSA1305ARJS | C169: Mero | D169: Santos | E169: 36085.0088 | F169: 2352.1568 | G169: 50879.62816
B170: 8LL87DRJS | C170: Lula | D170: Santos | E170: 32568.6917 | F170: 1091.5906 | G170: 39434.58917
B171: 7SPH17SPS | C171: Sapinhoá | D171: Santos | E171: 31687.8166 | F171: 1076.3976 | G171: 38458.15299
B172: 7LL36ARJS | C172: Lula | D172: Santos | E172: 28164.4118 | F172: 1360.7132 | G172: 36723.03929
B173: 7LL80DBRJS | C173: Lula | D173: Santos | E173: 29947.8923 | F173: 1035.7789 | G173: 36462.74478
B174: 7LL48DRJS | C174: Lula | D174: Santos | E174: 29727.9601 | F174: 1014.355 | G174: 36108.06032
B175: 8LL81DRJS | C175: Lula | D175: Santos | E175: 29012.89 | F175: 1047.5767 | G175: 35601.9484
B176: 7LL83DRJS | C176: Lula | D176: Santos | E176: 26812.8518 | F176: 1285.6606 | G176: 34899.4127
B177: 7SPH7DSPS | C177: Sapinhoá | D177: Santos | E177: 27769.8229 | F177: 1016.6627 | G177: 34164.43812
B178: 7LL73DRJS | C178: Lula | D178: Santos | E178: 24464.5699 | F178: 1470.2123 | G178: 33711.92593
B179: 7LL63DRJS | C179: Lula | D179: Santos | E179: 25353.2182 | F179: 1247.2509 | G179: 33198.18938
B180: 7SPH14DSPS | C180: Sapinhoá | D180: Santos | E180: 25526.7809 | F180: 1113.0849 | G180: 32527.87343
B181: 7LL15DRJS | C181: Lula | D181: Santos | E181: 26396.866 | F181: 968.4844 | G181: 32488.44886
B182: 7LL84DRJS | C182: Lula | D182: Santos | E182: 26707.8652 | F182: 906.3997 | G182: 32408.9471
B183: 8LL37DRJS | C183: Lula | D183: Santos | E183: 24688.6857 | F183: 1163.0686 | G183: 32004.16621
B184: 7LL91RJS | C184: Lula | D184: Santos | E184: 26295.5395 | F184: 904.0172 | G184: 31981.63592
B185: 9LL7RJS | C185: Lula | D185: Santos | E185: 25219.2997 | F185: 981.111 | G185: 31390.30148
B186: 3BRSA496RJS | C186: Lula | D186: Santos | E186: 23429.9532 | F186: 1233.6582 | G186: 31189.42888
B187: 7LL97RJS | C187: Lula | D187: Santos | E187: 25545.088 | F187: 877.9222 | G187: 31067.05183
B188: 3BRSA839ARJS | C188: Lula | D188: Santos | E188: 24361.876 | F188: 1056.2397 | G188: 31005.42303
B189: 7LL60DRJS | C189: Lula | D189: Santos | E189: 23073.7183 | F189: 1224.6446 | G189: 30776.50015
B190: 7LL27RJS | C190: Lula | D190: Santos | E190: 23011.3254 | F190: 1201.8511 | G190: 30570.74047
B191: 9LL2RJS | C191: Lula | D191: Santos | E191: 22109.4912 | F191: 1246.2709 | G191: 29948.29837
B192: 7LL22DRJS | C192: Lula | D192: Santos | E192: 24349.2657 | F192: 831.4712 | G192: 29579.06157
B193: 3BRSA788SPS | C193: Sapinhoá | D193: Santos | E193: 22799.8014 | F193: 1051.1446 | G193: 29411.30122
B194: 7LL45DRJS | C194: Lula | D194: Santos | E194: 21873.5489 | F194: 1152.1482 | G194: 29120.34217
B195: 7LL28DRJS | C195: Lula | D195: Santos | E195: 23721.6301 | F195: 835.8645 | G195: 28979.05899
B196: 7LL79DRJS | C196: Lula | D196: Santos | E196: 23912.6961 | F196: 805.4581 | G196: 28978.87451
B197: 7LL69RJS | C197: Lula | D197: Santos | E197: 24015.5395 | F197: 771.7915 | G197: 28869.96139
B198: 7JUB34HESS | C198: Jubarte³ | D198: Campos | E198: 23327.7092 | F198: 847.8414 | G198: 28660.47052
B199: 6BRSA1222AESS | C199: Jubarte³ | D199: Campos | E199: 23667.7722 | F199: 777.6106 | G199: 28558.79513
B200: 7LL90DRJS | C200: Lula | D200: Santos | E200: 22936.2228 | F200: 774.5017 | G200: 27807.69134
B201: 9LL19RJS | C201: Lula | D201: Santos | E201: 22905.7604 | F201: 691.5872 | G201: 27255.71249
B202: 3BRSA883RJS | C202: Lula | D202: Santos | E202: 20257.4403 | F202: 1106.8096 | G202: 27219.06239
B203: 7LPA1DSPS | C203: Lapa | D203: Santos | E203: 22718.67 | F203: 715.4526 | G203: 27218.73092
B204: 7LL102DRJS | C204: Lula | D204: Santos | E204: 20825.5437 | F204: 706.2283 | G204: 25267.58552
B205: 7BFR7ESS | C205: Baleia Franca³ | D205: Campos | E205: 20006.1471 | F205: 669.9365 | G205: 24219.9204
B206: 7LL46RJS | C206: Lula | D206: Santos | E206: 18874.0364 | F206: 847.0447 | G206: 24201.78662
B207: 7LL85RJS | C207: Lula | D207: Santos | E207: 17855.2636 | F207: 874.1495 | G207: 23353.49787
B208: 9LL20DRJS | C208: Lula | D208: Santos | E208: 17736.4786 | F208: 858.1193 | G208: 23133.88595
B209: 7JUB58DPAESS | C209: Jubarte³ | D209: Campos | E209: 18518.1366 | F209: 596.1847 | G209: 22268.02509
B210: 7LL31DRJS | C210: Lula | D210: Santos | E210: 16762.4692 | F210: 816.2941 | G210: 21896.80399
B211: 3BRSA865ARJS | C211: Lula | D211: Santos | E211: 17171.4966 | F211: 634.4534 | G211: 21162.08794
B212: 6BRSA639ESS | C212: Jubarte³ | D212: Campos | E212: 16975.9332 | F212: 591.426 | G212: 20695.89037
B213: 3BRSA830RJS | C213: Lula | D213: Santos | E213: 13804.0623 | F213: 1071.5534 | G213: 20543.92959
B214: 7LL17DRJS | C214: Lula | D214: Santos | E214: 16686.2606 | F214: 552.3907 | G214: 20160.69315
B215: 9BRSA1212RJS | C215: Sururu | D215: Santos | E215: 16303.9633 | F215: 495.2514 | G215: 19419.00051
B216: 8LPA2DSPS | C216: Lapa | D216: Santos | E216: 16836.2929 | F216: 399.483 | G216: 19348.96507
B217: 7SPH1SPS | C217: Sapinhoá | D217: Santos | E217: 15091.4068 | F217: 530.2971 | G217: 18426.8748
B218: 7LL3DRJS | C218: Lula | D218: Santos | E218: 14973.8779 | F218: 503.8556 | G218: 18143.03389
B219: 9BRSA908DRJS | C219: Lula | D219: Santos | E219: 12851.1737 | F219: 824.1974 | G219: 18035.21875
B220: 7JUB57DPAESS | C220: Jubarte³ | D220: Campos | E220: 14170.5897 | F220: 549.4 | G220: 17626.21131
B221: 7BFR12PAESS | C221: Baleia Franca³ | D221: Campos | E221: 13569.0023 | F221: 568.2618 | G221: 17143.26105
B222: 7LL66RJS | C222: Lula | D222: Santos | E222: 13564.7225 | F222: 483.1303 | G222: 16603.52029
... 33 more rows

Sheet 3. Ranking
B2: 3. RANKING - ABRIL 2018
B6: Tabela 12. Os 30 poços com maior produção de petróleo (bbl/d)
B8: Nº | C8: Nome ANP do Poço | D8: Campo | E8: Bacia | F8: Localização | G8: Operador | H8: Petróleo (bbl/d)
B9: 1 | C9: 3BRSA1305ARJS | D9: Mero | E9: Santos | F9: Mar | G9: Petrobras | H9: 36085.00881
B10: 2 | C10: 8LL87DRJS | D10: Lula | E10: Santos | F10: Mar | G10: Petrobras | H10: 32568.69174
B11: 3 | C11: 7SPH17SPS | D11: Sapinhoá | E11: Santos | F11: Mar | G11: Petrobras | H11: 31687.81664
B12: 4 | C12: 7LL80DBRJS | D12: Lula | E12: Santos | F12: Mar | G12: Petrobras | H12: 29947.89229
B13: 5 | C13: 7LL48DRJS | D13: Lula | E13: Santos | F13: Mar | G13: Petrobras | H13: 29727.96006
B14: 6 | C14: 8LL81DRJS | D14: Lula | E14: Santos | F14: Mar | G14: Petrobras | H14: 29012.89002
B15: 7 | C15: 7LL36ARJS | D15: Lula | E15: Santos | F15: Mar | G15: Petrobras | H15: 28164.41184
B16: 8 | C16: 7SPH7DSPS | D16: Sapinhoá | E16: Santos | F16: Mar | G16: Petrobras | H16: 27769.82291
B17: 9 | C17: 7LL83DRJS | D17: Lula | E17: Santos | F17: Mar | G17: Petrobras | H17: 26812.85181
B18: 10 | C18: 7LL84DRJS | D18: Lula | E18: Santos | F18: Mar | G18: Petrobras | H18: 26707.86523
B19: 11 | C19: 7LL15DRJS | D19: Lula | E19: Santos | F19: Mar | G19: Petrobras | H19: 26396.866
B20: 12 | C20: 7LL91RJS | D20: Lula | E20: Santos | F20: Mar | G20: Petrobras | H20: 26295.53946
B21: 13 | C21: 7LL97RJS | D21: Lula | E21: Santos | F21: Mar | G21: Petrobras | H21: 25545.08798
B22: 14 | C22: 7SPH14DSPS | D22: Sapinhoá | E22: Santos | F22: Mar | G22: Petrobras | H22: 25526.78085
B23: 15 | C23: 7LL63DRJS | D23: Lula | E23: Santos | F23: Mar | G23: Petrobras | H23: 25353.21816
B24: 16 | C24: 9LL7RJS | D24: Lula | E24: Santos | F24: Mar | G24: Petrobras | H24: 25219.29972
B25: 17 | C25: 8LL37DRJS | D25: Lula | E25: Santos | F25: Mar | G25: Petrobras | H25: 24688.68569
B26: 18 | C26: 7LL73DRJS | D26: Lula | E26: Santos | F26: Mar | G26: Petrobras | H26: 24464.5699
B27: 19 | C27: 3BRSA839ARJS | D27: Lula | E27: Santos | F27: Mar | G27: Petrobras | H27: 24361.87596
B28: 20 | C28: 7LL22DRJS | D28: Lula | E28: Santos | F28: Mar | G28: Petrobras | H28: 24349.26573
B29: 21 | C29: 7LL69RJS | D29: Lula | E29: Santos | F29: Mar | G29: Petrobras | H29: 24015.53953
B30: 22 | C30: 7LL79DRJS | D30: Lula | E30: Santos | F30: Mar | G30: Petrobras | H30: 23912.6961
B31: 23 | C31: 7LL28DRJS | D31: Lula | E31: Santos | F31: Mar | G31: Petrobras | H31: 23721.63012
B32: 24 | C32: 6BRSA1222AESS | D32: Jubarte³ | E32: Campos | F32: Mar | G32: Petrobras | H32: 23667.77216
B33: 25 | C33: 3BRSA496RJS | D33: Lula | E33: Santos | F33: Mar | G33: Petrobras | H33: 23429.95318
B34: 26 | C34: 7JUB34HESS | D34: Jubarte³ | E34: Campos | F34: Mar | G34: Petrobras | H34: 23327.70918
B35: 27 | C35: 7LL60DRJS | D35: Lula | E35: Santos | F35: Mar | G35: Petrobras | H35: 23073.71826
B36: 28 | C36: 7LL27RJS | D36: Lula | E36: Santos | F36: Mar | G36: Petrobras | H36: 23011.32544
B37: 29 | C37: 7LL90DRJS | D37: Lula | E37: Santos | F37: Mar | G37: Petrobras | H37: 22936.22281
B38: 30 | C38: 9LL19RJS | D38: Lula | E38: Santos | F38: Mar | G38: Petrobras | H38: 22905.76042
B41: Tabela 13. Os 30 poços com maior produção de gás natural (Mm³/d)
B43: Nº | C43: Nome ANP do Poço | D43: Campo | E43: Bacia | F43: Localização | G43: Operador | H43: Gás Natural (Mm³/d)
B44: 1 | C44: 3BRSA1305ARJS | D44: Mero | E44: Santos | F44: Mar | G44: Petrobras | H44: 2352.15684
B45: 2 | C45: 7MXL18HASPS | D45: Mexilhão | E45: Santos | F45: Mar | G45: Petrobras | H45: 1813.518788
B46: 3 | C46: 7MXL17HPASPS | D46: Mexilhão | E46: Santos | F46: Mar | G46: Petrobras | H46: 1790.533444
B47: 4 | C47: 7LL73DRJS | D47: Lula | E47: Santos | F47: Mar | G47: Petrobras | H47: 1470.21228
B48: 5 | C48: 7LL36ARJS | D48: Lula | E48: Santos | F48: Mar | G48: Petrobras | H48: 1360.713221
B49: 6 | C49: 7LL83DRJS | D49: Lula | E49: Santos | F49: Mar | G49: Petrobras | H49: 1285.660629
B50: 7 | C50: 7LL63DRJS | D50: Lula | E50: Santos | F50: Mar | G50: Petrobras | H50: 1247.250887
B51: 8 | C51: 9LL2RJS | D51: Lula | E51: Santos | F51: Mar | G51: Petrobras | H51: 1246.270875
B52: 9 | C52: 3BRSA496RJS | D52: Lula | E52: Santos | F52: Mar | G52: Petrobras | H52: 1233.658219
B53: 10 | C53: 7LL60DRJS | D53: Lula | E53: Santos | F53: Mar | G53: Petrobras | H53: 1224.644647
B54: 11 | C54: 7LL27RJS | D54: Lula | E54: Santos | F54: Mar | G54: Petrobras | H54: 1201.851074
B55: 12 | C55: 8LL37DRJS | D55: Lula | E55: Santos | F55: Mar | G55: Petrobras | H55: 1163.068609
B56: 13 | C56: 7LL45DRJS | D56: Lula | E56: Santos | F56: Mar | G56: Petrobras | H56: 1152.14816
B57: 14 | C57: 7MNT6DBAS | D57: Manati | E57: Camamu | F57: Mar | G57: Petrobras | H57: 1122.375626
B58: 15 | C58: 7SPH14DSPS | D58: Sapinhoá | E58: Santos | F58: Mar | G58: Petrobras | H58: 1113.084884
B59: 16 | C59: 3BRSA883RJS | D59: Lula | E59: Santos | F59: Mar | G59: Petrobras | H59: 1106.809584
B60: 17 | C60: 8LL87DRJS | D60: Lula | E60: Santos | F60: Mar | G60: Petrobras | H60: 1091.590556
B61: 18 | C61: 7SPH17SPS | D61: Sapinhoá | E61: Santos | F61: Mar | G61: Petrobras | H61: 1076.397584
B62: 19 | C62: 3BRSA830RJS | D62: Lula | E62: Santos | F62: Mar | G62: Petrobras | H62: 1071.553416
B63: 20 | C63: 3BRSA839ARJS | D63: Lula | E63: Santos | F63: Mar | G63: Petrobras | H63: 1056.239723
B64: 21 | C64: 3BRSA788SPS | D64: Sapinhoá | E64: Santos | F64: Mar | G64: Petrobras | H64: 1051.144578
B65: 22 | C65: 8LL81DRJS | D65: Lula | E65: Santos | F65: Mar | G65: Petrobras | H65: 1047.57667
B66: 23 | C66: 7LL80DBRJS | D66: Lula | E66: Santos | F66: Mar | G66: Petrobras | H66: 1035.77894
B67: 24 | C67: 7SPH7DSPS | D67: Sapinhoá | E67: Santos | F67: Mar | G67: Petrobras | H67: 1016.662705
B68: 25 | C68: 7LL48DRJS | D68: Lula | E68: Santos | F68: Mar | G68: Petrobras | H68: 1014.35495
B69: 26 | C69: 9LL7RJS | D69: Lula | E69: Santos | F69: Mar | G69: Petrobras | H69: 981.1109633
B70: 27 | C70: 7LL15DRJS | D70: Lula | E70: Santos | F70: Mar | G70: Petrobras | H70: 968.4844207
B71: 28 | C71: 7RO154DRJS | D71: Roncador | E71: Campos | F71: Mar | G71: Petrobras | H71: 909.3895223
B72: 29 | C72: 7LL84DRJS | D72: Lula | E72: Santos | F72: Mar | G72: Petrobras | H72: 906.399707
B73: 30 | C73: 7LL91RJS | D73: Lula | E73: Santos | F73: Mar | G73: Petrobras | H73: 904.0171553
B76: Tabela 14. Os 30 poços com maior produção total (boe/d)
B78: Nº | C78: Nome ANP do Poço | D78: Campo | E78: Bacia | F78: Localização | G78: Operador | H78: Produção (boe/d)
B79: 1 | C79: 3BRSA1305ARJS | D79: Mero | E79: Santos | F79: Mar | G79: Petrobras | H79: 50879.62843
B80: 2 | C80: 8LL87DRJS | D80: Lula | E80: Santos | F80: Mar | G80: Petrobras | H80: 39434.58894
B81: 3 | C81: 7SPH17SPS | D81: Sapinhoá | E81: Santos | F81: Mar | G81: Petrobras | H81: 38458.15293
B82: 4 | C82: 7LL36ARJS | D82: Lula | E82: Santos | F82: Mar | G82: Petrobras | H82: 36723.03947
B83: 5 | C83: 7LL80DBRJS | D83: Lula | E83: Santos | F83: Mar | G83: Petrobras | H83: 36462.74502
B84: 6 | C84: 7LL48DRJS | D84: Lula | E84: Santos | F84: Mar | G84: Petrobras | H84: 36108.05997
B85: 7 | C85: 8LL81DRJS | D85: Lula | E85: Santos | F85: Mar | G85: Petrobras | H85: 35601.94823
B86: 8 | C86: 7LL83DRJS | D86: Lula | E86: Santos | F86: Mar | G86: Petrobras | H86: 34899.41288
B87: 9 | C87: 7SPH7DSPS | D87: Sapinhoá | E87: Santos | F87: Mar | G87: Petrobras | H87: 34164.43816
B88: 10 | C88: 7LL73DRJS | D88: Lula | E88: Santos | F88: Mar | G88: Petrobras | H88: 33711.9258
B89: 11 | C89: 7LL63DRJS | D89: Lula | E89: Santos | F89: Mar | G89: Petrobras | H89: 33198.18926
B90: 12 | C90: 7SPH14DSPS | D90: Sapinhoá | E90: Santos | F90: Mar | G90: Petrobras | H90: 32527.87329
B91: 13 | C91: 7LL15DRJS | D91: Lula | E91: Santos | F91: Mar | G91: Petrobras | H91: 32488.44899
B92: 14 | C92: 7LL84DRJS | D92: Lula | E92: Santos | F92: Mar | G92: Petrobras | H92: 32408.94717
B93: 15 | C93: 8LL37DRJS | D93: Lula | E93: Santos | F93: Mar | G93: Petrobras | H93: 32004.16626
B94: 16 | C94: 7LL91RJS | D94: Lula | E94: Santos | F94: Mar | G94: Petrobras | H94: 31981.63561
B95: 17 | C95: 9LL7RJS | D95: Lula | E95: Santos | F95: Mar | G95: Petrobras | H95: 31390.30127
B96: 18 | C96: 3BRSA496RJS | D96: Lula | E96: Santos | F96: Mar | G96: Petrobras | H96: 31189.42899
B97: 19 | C97: 7LL97RJS | D97: Lula | E97: Santos | F97: Mar | G97: Petrobras | H97: 31067.05208
B98: 20 | C98: 3BRSA839ARJS | D98: Lula | E98: Santos | F98: Mar | G98: Petrobras | H98: 31005.42314
B99: 21 | C99: 7LL60DRJS | D99: Lula | E99: Santos | F99: Mar | G99: Petrobras | H99: 30776.50041
B100: 22 | C100: 7LL27RJS | D100: Lula | E100: Santos | F100: Mar | G100: Petrobras | H100: 30570.74035
B101: 23 | C101: 9LL2RJS | D101: Lula | E101: Santos | F101: Mar | G101: Petrobras | H101: 29948.29824
B102: 24 | C102: 7LL22DRJS | D102: Lula | E102: Santos | F102: Mar | G102: Petrobras | H102: 29579.06169
B103: 25 | C103: 3BRSA788SPS | D103: Sapinhoá | E103: Santos | F103: Mar | G103: Petrobras | H103: 29411.30112
B104: 26 | C104: 7LL45DRJS | D104: Lula | E104: Santos | F104: Mar | G104: Petrobras | H104: 29120.34194
B105: 27 | C105: 7LL28DRJS | D105: Lula | E105: Santos | F105: Mar | G105: Petrobras | H105: 28979.05908
B106: 28 | C106: 7LL79DRJS | D106: Lula | E106: Santos | F106: Mar | G106: Petrobras | H106: 28978.87459
B107: 29 | C107: 7LL69RJS | D107: Lula | E107: Santos | F107: Mar | G107: Petrobras | H107: 28869.96138
B108: 30 | C108: 7JUB34HESS | D108: Jubarte³ | E108: Campos | F108: Mar | G108: Petrobras | H108: 28660.47023
B111: Tabela 15. Os 30 poços terrestres com maior produção de petróleo (bbl/d)
B113: Nº | C113: Nome ANP do Poço | D113: Campo | E113: Bacia | F113: Localização | G113: Operador | H113: Petróleo (bbl/d)
B114: 1 | C114: 3GTE4DPABA | D114: Tiê | E114: Recôncavo | F114: Terra | G114: Maha Energy | H114: 1428.570452
B115: 2 | C115: 7LUC69HPAM | D115: Leste Do Urucu | E115: Solimões | F115: Terra | G115: Petrobras | H115: 1067.482862
B116: 3 | C116: 1BRSA769AM | D116: Arara Azul | E116: Solimões | F116: Terra | G116: Petrobras | H116: 808.0059751
B117: 4 | C117: 7LUC 0038HPAM | D117: Leste Do Urucu | E117: Solimões | F117: Terra | G117: Petrobras | H117: 795.6674645
B118: 5 | C118: 7RUC112HPAAM | D118: Rio Urucu | E118: Solimões | F118: Terra | G118: Petrobras | H118: 703.7553096
B119: 6 | C119: 9RUC75DAM | D119: Rio Urucu | E119: Solimões | F119: Terra | G119: Petrobras | H119: 644.1369262
B120: 7 | C120: 3SUC 0003 AM | D120: Rio Urucu | E120: Solimões | F120: Terra | G120: Petrobras | H120: 639.8583878
B121: 8 | C121: 7LUC63HPAM | D121: Leste Do Urucu | E121: Solimões | F121: Terra | G121: Petrobras | H121: 610.133165
B122: 9 | C122: 7LUC61HPAM | D122: Leste Do Urucu | E122: Solimões | F122: Terra | G122: Petrobras | H122: 555.3474523
B123: 10 | C123: 7LUC71HPAM | D123: Leste Do Urucu | E123: Solimões | F123: Terra | G123: Petrobras | H123: 527.1825218
B124: 11 | C124: 7LUC65HPAM | D124: Leste Do Urucu | E124: Solimões | F124: Terra | G124: Petrobras | H124: 526.4204064
B125: 12 | C125: 7LUC 0032HAAM | D125: Leste Do Urucu | E125: Solimões | F125: Terra | G125: Petrobras | H125: 519.7674647
B126: 13 | C126: 7LUC90HPAM | D126: Leste Do Urucu | E126: Solimões | F126: Terra | G126: Petrobras | H126: 511.2921554
B127: 14 | C127: 7RUC103DPAM | D127: Rio Urucu | E127: Solimões | F127: Terra | G127: Petrobras | H127: 502.6633748
B128: 15 | C128: 7RUC 0039HPAM | D128: Rio Urucu | E128: Solimões | F128: Terra | G128: Petrobras | H128: 488.7536696
B129: 16 | C129: 7LUC 0041HPAM | D129: Leste Do Urucu | E129: Solimões | F129: Terra | G129: Petrobras | H129: 477.3594691
B130: 17 | C130: 3RUC 0016D AM | D130: Rio Urucu | E130: Solimões | F130: Terra | G130: Petrobras | H130: 466.6221345
B131: 18 | C131: 7LUC 0042HPAM | D131: Leste Do Urucu | E131: Solimões | F131: Terra | G131: Petrobras | H131: 448.5802338
B132: 19 | C132: 7RUC67HPAAM | D132: Rio Urucu | E132: Solimões | F132: Terra | G132: Petrobras | H132: 418.5101198
B133: 20 | C133: 7AR371DBA | D133: Araçás | E133: Recôncavo | F133: Terra | G133: Petrobras | H133: 418.3436495
B134: 21 | C134: 7CNC35ES | D134: Cancã | E134: Espírito Santo | F134: Terra | G134: Petrobras | H134: 411.4619684
B135: 22 | C135: 7LUC80DPAM | D135: Leste Do Urucu | E135: Solimões | F135: Terra | G135: Petrobras | H135: 407.5411105
B136: 23 | C136: 7ANB7DAL | D136: Anambé | E136: Alagoas | F136: Terra | G136: Petrobras | H136: 406.0393135
B137: 24 | C137: 4SMT 0003 AM | D137: Araracanga | E137: Solimões | F137: Terra | G137: Petrobras | H137: 402.1429859
B138: 25 | C138: 7LUC88HPAM | D138: Leste Do Urucu | E138: Solimões | F138: Terra | G138: Petrobras | H138: 396.4995587
B139: 26 | C139: 7LUC67HPAM | D139: Leste Do Urucu | E139: Solimões | F139: Terra | G139: Petrobras | H139: 365.9153576
B140: 27 | C140: 7RUC89HAM | D140: Rio Urucu | E140: Solimões | F140: Terra | G140: Petrobras | H140: 352.7006764
B141: 28 | C141: 4LUC 0003 AM | D141: Leste Do Urucu | E141: Solimões | F141: Terra | G141: Petrobras | H141: 346.8968591
B142: 29 | C142: 7C 0207 BA | D142: Candeias | E142: Recôncavo | F142: Terra e Mar | G142: Petrobras | H142: 340.6745597
B143: 30 | C143: 1SMT 0002 AM | D143: Araracanga | E143: Solimões | F143: Terra | G143: Petrobras | H143: 338.7641348
B146: Tabela 16. Os 30 poços terrestres com maior produção de gás natural (Mm³/d)
B148: Nº | C148: Nome ANP do Poço | D148: Campo | E148: Bacia | F148: Localização | G148: Operador | H148: Gás Natural (Mm³/d)
B149: 1 | C149: 9RUC75DAM | D149: Rio Urucu | E149: Solimões | F149: Terra | G149: Petrobras | H149: 541.4936667
B150: 2 | C150: 7LUC71HPAM | D150: Leste Do Urucu | E150: Solimões | F150: Terra | G150: Petrobras | H150: 510.634922
B151: 3 | C151: 7RUC103DPAM | D151: Rio Urucu | E151: Solimões | F151: Terra | G151: Petrobras | H151: 462.6045413
B152: 4 | C152: 7LUC 0042HPAM | D152: Leste Do Urucu | E152: Solimões | F152: Terra | G152: Petrobras | H152: 453.5662873
B153: 5 | C153: 3RUC 0016D AM | D153: Rio Urucu | E153: Solimões | F153: Terra | G153: Petrobras | H153: 450.1449043
B154: 6 | C154: 7LUC63HPAM | D154: Leste Do Urucu | E154: Solimões | F154: Terra | G154: Petrobras | H154: 429.873801
B155: 7 | C155: 4SMT 0003 AM | D155: Araracanga | E155: Solimões | F155: Terra | G155: Petrobras | H155: 429.3277177
B156: 8 | C156: 7LUC 0041HPAM | D156: Leste Do Urucu | E156: Solimões | F156: Terra | G156: Petrobras | H156: 400.784912
B157: 9 | C157: 7RUC67HPAAM | D157: Rio Urucu | E157: Solimões | F157: Terra | G157: Petrobras | H157: 400.1144193
B158: 10 | C158: 1SMT 0002 AM | D158: Araracanga | E158: Solimões | F158: Terra | G158: Petrobras | H158: 392.250977
B159: 11 | C159: 7RUC56HPAM | D159: Rio Urucu | E159: Solimões | F159: Terra | G159: Petrobras | H159: 369.9919
B160: 12 | C160: 7LUC65HPAM | D160: Leste Do Urucu | E160: Solimões | F160: Terra | G160: Petrobras | H160: 358.3072263
B161: 13 | C161: 7LUC 0038HPAM | D161: Leste Do Urucu | E161: Solimões | F161: Terra | G161: Petrobras | H161: 352.1078617
B162: 14 | C162: 7LUC80DPAM | D162: Leste Do Urucu | E162: Solimões | F162: Terra | G162: Petrobras | H162: 345.4486673
B163: 15 | C163: 7RUC 0039HPAM | D163: Rio Urucu | E163: Solimões | F163: Terra | G163: Petrobras | H163: 341.1159473
B164: 16 | C164: 7LUC61HPAM | D164: Leste Do Urucu | E164: Solimões | F164: Terra | G164: Petrobras | H164: 324.893676
B165: 17 | C165: 7RUC 0018D AM | D165: Rio Urucu | E165: Solimões | F165: Terra | G165: Petrobras | H165: 323.9379027
B166: 18 | C166: 7LUC88HPAM | D166: Leste Do Urucu | E166: Solimões | F166: Terra | G166: Petrobras | H166: 309.818205
B167: 19 | C167: 3RUC 0008 AM | D167: Rio Urucu | E167: Solimões | F167: Terra | G167: Petrobras | H167: 299.4479703
B168: 20 | C168: 7RUC 0024D AM | D168: Rio Urucu | E168: Solimões | F168: Terra | G168: Petrobras | H168: 296.9406153
B169: 21 | C169: 3BRSA1171DPAM | D169: Rio Urucu | E169: Solimões | F169: Terra | G169: Petrobras | H169: 296.3966783
B170: 22 | C170: 7LUC 0022DPAM | D170: Leste Do Urucu | E170: Solimões | F170: Terra | G170: Petrobras | H170: 293.7132097
B171: 23 | C171: 9LUC91DAM | D171: Leste Do Urucu | E171: Solimões | F171: Terra | G171: Petrobras | H171: 289.8243193
B172: 24 | C172: 3BRSA515AM | D172: Rio Urucu | E172: Solimões | F172: Terra | G172: Petrobras | H172: 280.7122737
B173: 25 | C173: 7LUC59HPAM | D173: Leste Do Urucu | E173: Solimões | F173: Terra | G173: Petrobras | H173: 278.3612497
B174: 26 | C174: 9RUC97DPAM | D174: Rio Urucu | E174: Solimões | F174: Terra | G174: Petrobras | H174: 267.3594027
B175: 27 | C175: 7RUC86HAM | D175: Rio Urucu | E175: Solimões | F175: Terra | G175: Petrobras | H175: 261.3292173
B176: 28 | C176: 7RUC96HPAM | D176: Rio Urucu | E176: Solimões | F176: Terra | G176: Petrobras | H176: 259.2363573
B177: 29 | C177: 9RUC63DAM | D177: Rio Urucu | E177: Solimões | F177: Terra | G177: Petrobras | H177: 253.3393497
B178: 30 | C178: 7LUC 0032HAAM | D178: Leste Do Urucu | E178: Solimões | F178: Terra | G178: Petrobras | H178: 249.4763627
B181: Tabela 17. As 30 instalações com maior produção de petróleo (bbl/d)
B183: Plataforma | C183: Petróleo (bbl/d) | D183: Gás natural (Mm³/d) | E183: Produção (boe/d) | F183: Nº poços produtores | G183: Campos Produtores
B184: FPSO CIDADE DE SAQUAREMA | C184: 149639.9095 | D184: 5760.702034 | E184: 185873.6307 | F184: 7 | G184: Lula
B185: FPSO CIDADE DE MARICÁ | C185: 146073.8262 | D185: 5349.875746 | E185: 179723.5282 | F185: 7 | G185: Lula
B186: PETROBRAS 58 | C186: 144725.8486 | D186: 4551.24588 | E186: 173352.3205 | F186: 12 | G186: Baleia Anã³/Baleia Azul³/Baleia Franca³/Jubarte³
B187: FPSO CIDADE DE ILHA BELA | C187: 144041.0938 | D187: 5645.270343 | E187: 179548.7717 | F187: 7 | G187: Sapinhoá
B188: PETROBRAS 66 (P-66) | C188: 136653.5526 | D188: 5461.897944 | E188: 171007.8529 | F188: 6 | G188: Lula
B189: FPSO CIDADE DE ITAGUAÍ | C189: 129284.9396 | D189: 6373.536857 | E189: 169373.2754 | F189: 6 | G189: Lula
B190: FPSO CIDADE DE MANGARATIBA | C190: 124373.749 | D190: 6773.778277 | E190: 166979.5273 | F190: 6 | G190: Lula
B191: FPSO CIDADE DE PARATY | C191: 114862.4933 | D191: 3920.622429 | E191: 139522.4634 | F191: 6 | G191: Lula
B192: FPSO CIDADE DE ANGRA DOS REIS | C192: 96890.6045 | D192: 4367.727714 | E192: 124362.782 | F192: 6 | G192: Lula
B193: PETROBRAS 52 | C193: 88863.21771 | D193: 1750.138894 | E193: 99871.25883 | F193: 16 | G193: Roncador
B194: PETROBRAS 40 | C194: 68103.53627 | D194: 1323.091106 | E194: 76425.52794 | F194: 15 | G194: Marlim/Marlim Sul
B195: PETROBRAS 57 | C195: 61119.93297 | D195: 487.7427313 | E195: 64187.74208 | F195: 16 | G195: Jubarte³
B196: FPSO CIDADE DE SÃO PAULO | C196: 53898.94596 | D196: 2271.541266 | E196: 68186.50892 | F196: 5 | G196: Sapinhoá
B197: PETROBRAS 43 | C197: 52541.34708 | D197: 641.266766 | E197: 56574.79319 | F197: 19 | G197: Barracuda/Caratinga
B198: PEREGRINO A | C198: 47874.41079 | D198: 87.421 | E198: 48424.27227 | F198: 15 | G198: Peregrino
B199: PETROBRAS 54 | C199: 47203.03437 | D199: 555.8456113 | E199: 50699.19766 | F199: 12 | G199: Roncador
B200: PETROBRAS 55 | C200: 46795.76708 | D200: 778.1689563 | E200: 51690.30196 | F200: 10 | G200: Roncador
B201: PETROBRAS 56 | C201: 45461.82208 | D201: 1371.931055 | E201: 54091.00775 | F201: 10 | G201: Marlim Sul
B202: FPSO CIDADE DE ANCHIETA | C202: 44303.61017 | D202: 1594.228516 | E202: 54331.00464 | F202: 5 | G202: Baleia Azul³/Jubarte³/Pirambu³
B203: PETROBRAS 53 | C203: 44169.67706 | D203: 702.0527723 | E203: 48585.45561 | F203: 15 | G203: Marlim Leste
B204: FPSO ESPIRITO SANTO | C204: 40845.57822 | D204: 375.326397 | E204: 43206.30994 | F204: 18 | G204: Argonauta/Ostra
B205: FPSO CAPIXABA | C205: 40618.23438 | D205: 843.1772823 | E205: 45921.65928 | F205: 4 | G205: Cachalote³/Jubarte³
B206: PETROBRAS 51 | C206: 39629.95218 | D206: 610.0648493 | E206: 43467.14417 | F206: 12 | G206: Marlim Sul
B207: FPSO CIDADE DE CARAGUATATUBA | C207: 39554.96297 | D207: 1114.935576 | E207: 46567.6959 | F207: 2 | G207: Lapa
B208: FPSO PIONEIRO DE LIBRA | C208: 36085.00881 | D208: 2352.15684 | E208: 50879.62843 | F208: 1 | G208: Mero
B209: PETROBRAS 62 | C209: 34138.29181 | D209: 2053.580045 | E209: 47054.92011 | F209: 13 | G209: Roncador
B210: FPSO CIDADE DE ITAJAÍ | C210: 33947.35624 | D210: 269.3040743 | E210: 35641.2277 | F210: 6 | G210: Baúna
B211: PETROBRAS 19 | C211: 28969.55595 | D211: 394.0138393 | E211: 31447.82814 | F211: 10 | G211: Marlim/Marlim Sul
B212: FPSO CIDADE DE NITEROI | C212: 28035.22837 | D212: 526.1051103 | E212: 31344.32955 | F212: 5 | G212: Marlim Leste
B213: PETROBRAS 20 | C213: 25144.21721 | D213: 357.2246447 | E213: 27391.09235 | F213: 9 | G213: Marlim/Marlim Sul/Voador
B216: Tabela 18. As 30 instalações com maior produção de gás natural (Mm³/d)
B218: Plataforma | C218: Petróleo (bbl/d) | D218: Gás natural (Mm³/d) | E218: Produção (boe/d) | F218: Nº poços produtores | G218: Campos Produtores
B219: POLO ARARA | C219: 10568.92583 | D219: 7925.826958 | E219: 60420.87149 | F219: 36 | G219: Arara Azul/Araracanga/Carapanaúba/ Cupiúba/Rio Urucu/Sudoeste Urucu
B220: PLATAFORMA DE MEXILHÃO | C220: 5383.364515 | D220: 7037.412687 | E220: 49647.35321 | F220: 7 | G220: Mexilhão
B221: FPSO CIDADE DE MANGARATIBA | C221: 124373.749 | D221: 6773.778277 | E221: 166979.5273 | F221: 6 | G221: Lula
B222: FPSO CIDADE DE ITAGUAÍ | C222: 129284.9396 | D222: 6373.536857 | E222: 169373.2754 | F222: 6 | G222: Lula
B223: FPSO CIDADE DE SAQUAREMA | C223: 149639.9095 | D223: 5760.702034 | E223: 185873.6307 | F223: 7 | G223: Lula
... 47 more rows
